fUSD/lending_fUSD_20260523
["ID","MTS","AMOUNT","RATE_DAILY","PERIOD"]
[422829954,1779485432000,-473.43548046,0.00010699,2]
[422829952,1779485432000,-500.0,0.00010699,2]
[422829925,1779485432000,-255.0,0.00010552,2]
[422829926,1779485432000,-150.0,0.00010567,2]
[422829937,1779485432000,-9999.99,0.00010696,2]
[422829935,1779485432000,-167.42,0.00010696,2]
[422829933,1779485432000,-9999.99,0.00010675,2]
[422829929,1779485432000,-2410.251,0.00010674,2]
[422829930,1779485432000,-169.483,0.00010674,2]
[422829931,1779485432000,-999.99,0.00010675,2]
[422829928,1779485432000,-2500.0,0.000106,2]
[422829927,1779485432000,-6805.7175,0.00010599,2]
[422829924,1779485432000,-1680.0,0.00010552,2]
[422829923,1779485432000,-741.34,0.00010529,2]
[422829922,1779485432000,-200.0,0.00010319,2]
[422829970,1779485432000,-500.0,0.00010699,2]
[422829939,1779485432000,-150.99,0.00010696,2]
[422829977,1779485432000,-500.0,0.00010699,2]
[422829982,1779485432000,-500.0,0.00010699,2]
[422829974,1779485432000,-500.0,0.00010699,2]
[422830008,1779485432000,-1763.20802313,0.000107,2]
[422830007,1779485432000,-4800.74438523,0.000107,2]
[422830010,1779485432000,-388.019697,0.000107,2]
[422830006,1779485432000,-2088.41628585,0.000107,2]
[422830004,1779485432000,-659.1457183,0.000107,2]
[422830005,1779485432000,-1146.86392482,0.000107,2]
[422830003,1779485432000,-699.59791438,0.000107,2]
[422830001,1779485432000,-116514.03645301,0.000107,2]
[422830000,1779485432000,-52415.77641393,0.000107,2]
[422829995,1779485432000,-500.0,0.00010699,2]
[422829999,1779485432000,-18225.69937423,0.000107,2]
[422829997,1779485432000,-250.0,0.00010699,2]
[422829992,1779485432000,-500.0,0.00010699,2]
[422830002,1779485432000,-6232.50825621,0.000107,2]
[422829998,1779485432000,-155.77436974,0.00010699,2]
[422829990,1779485432000,-500.0,0.00010699,2]
[422830009,1779485432000,-540.58542602,0.000107,2]
[422829980,1779485432000,-500.0,0.00010699,2]
[422829978,1779485432000,-500.0,0.00010699,2]
[422829972,1779485432000,-500.0,0.00010699,2]
[422829987,1779485432000,-500.0,0.00010699,2]
[422829984,1779485432000,-500.0,0.00010699,2]
[422829975,1779485432000,-500.0,0.00010699,2]
[422829986,1779485432000,-500.0,0.00010699,2]
[422829988,1779485432000,-500.0,0.00010699,2]
[422829991,1779485432000,-500.0,0.00010699,2]
[422829994,1779485432000,-500.0,0.00010699,2]
[422829993,1779485432000,-500.0,0.00010699,2]
[422829996,1779485432000,-500.0,0.00010699,2]
[422830058,1779485440000,-229.18987674,0.000107,2]
[422830059,1779485440000,-935.01124745,0.000107,2]
[422830057,1779485440000,-151.0,0.000106,2]
[422830060,1779485441000,152.0,0.00010929,7]
[422830073,1779485443000,-1952.50204367,0.000107,2]
[422830072,1779485443000,-3405.0,0.000107,2]
[422830078,1779485445000,-758.52221182,0.000107,2]
[422830077,1779485445000,-8897.52412277,0.000107,2]
[422830084,1779485573000,400.0,0.000106,3]
[422830085,1779485575000,800.0,0.000107,3]
[422830086,1779485577000,1200.0,0.000108,3]
[422830087,1779485579000,1600.0,0.000109,3]
[422830089,1779485867000,500.0,0.0002763,120]
[422830090,1779485990000,188.63,4.827e-05,2]
[422830091,1779485991000,188.63,7.241e-05,2]
[422830094,1779486028000,1626.0,0.00010941,5]
[422830095,1779486088000,157.0,7.17e-05,2]
[422830096,1779486090000,157.0,8.17e-05,2]
[422830098,1779486422000,400.0,0.000106,3]
[422830099,1779486424000,900.0,0.000107,3]
[422830100,1779486426000,1300.0,0.000108,3]
[422830101,1779486428000,1800.0,0.000109,3]
[422830102,1779486540000,1000.0,0.00027629,120]
[422830118,1779486631000,-200.0,9.745e-05,2]
[422830113,1779486631000,-3870.481014,9.365e-05,2]
[422830112,1779486631000,-286.87,9.365e-05,2]
[422830114,1779486631000,-1200.0,9.511e-05,2]
[422830117,1779486631000,-188.63,9.654e-05,2]
[422830119,1779486631000,-2000.0,9.794e-05,2]
[422830111,1779486631000,-167.93,9.261e-05,2]
[422830110,1779486631000,-157.0,9.17e-05,2]
[422830116,1779486631000,-23655.58394203,9.637e-05,2]
[422830120,1779486631000,-1735.25,9.794e-05,2]
[422830115,1779486631000,-20004.94,9.512e-05,2]
[422830123,1779486631000,-999.99,9.794e-05,2]
[422830121,1779486631000,-3351.06,9.794e-05,2]
[422830126,1779486631000,-587.51,9.98e-05,2]
[422830125,1779486631000,-151.0,9.9e-05,2]
[422830127,1779486631000,-150.0,0.00010025,2]
[422830124,1779486631000,-536.64,9.84e-05,2]
[422830129,1779486631000,-3223.28,0.00010027,2]
[422830128,1779486631000,-513.73,0.00010027,2]
[422830131,1779486631000,-499.99,0.00010027,2]
[422830130,1779486631000,-9999.99,0.00010027,2]
[422830122,1779486631000,-150.99,9.794e-05,2]
[422830132,1779486632000,-299.99,0.00010027,2]
[422830133,1779486632000,-168.12,0.00010045,2]
[422830134,1779486632000,-154.25,0.00010058,2]
[422830136,1779486632000,-10831.07327827,0.00010058,2]
[422830138,1779486632000,-407.42717604,0.00010058,2]
[422830135,1779486632000,-9999.99,0.00010058,2]
[422830139,1779486632000,-4016.76444638,0.00010058,2]
[422830140,1779486632000,-1053.71656762,0.00010058,2]
[422830137,1779486632000,-8454.15556809,0.00010058,2]
[422830144,1779486636000,1558.0,0.00010941,5]
[422830661,1779486643000,-236.8529636,0.00010058,2]
[422830686,1779486643000,-1925.5102933,0.00010137,2]
[422830663,1779486643000,-176.4897067,0.00010137,2]
[422830687,1779486643000,-157.0,0.0001017,2]
[422830690,1779486643000,-585.56,0.00010278,2]
[422830691,1779486643000,-405.14325361,0.00010378,2]
[422830689,1779486643000,-513.73,0.00010278,2]
[422830692,1779486643000,-800.76947126,0.00010378,2]
[422830688,1779486643000,-948.05583241,0.0001021,2]
[422830694,1779486646000,-1201.41969618,0.00010378,2]
[422830703,1779486693000,1100.0,0.000107,3]
[422830704,1779486695000,2300.0,0.000108,3]
[422830705,1779486698000,3500.0,0.000109,3]
[422830706,1779487234000,400.0,0.000108,3]
[422830707,1779487236000,800.0,0.000109,3]
[422830708,1779487243000,2369.0,0.00010941,5]
[422830710,1779487643000,1600.0,0.000108,3]
[422830711,1779487645000,3300.0,0.000109,3]
[422830712,1779487740000,1000.0,0.00027628,120]
[422830717,1779487831000,168.29,4.649e-05,2]
[422830752,1779487832000,-500.0,9.604e-05,2]
[422830754,1779487832000,-508.58471701,9.604e-05,2]
[422830748,1779487832000,-500.0,9.604e-05,2]
[422830753,1779487832000,-500.0,9.604e-05,2]
[422830762,1779487832000,-500.0,9.878e-05,2]
[422830755,1779487832000,-150.0,9.604e-05,2]
[422830757,1779487832000,-268.32,9.687e-05,2]
[422830758,1779487832000,-299.99,9.877e-05,2]
[422830760,1779487832000,-500.0,9.878e-05,2]
[422830768,1779487832000,-241.44671381,9.878e-05,2]
[422830775,1779487832000,-500.0,9.878e-05,2]
[422830773,1779487832000,-500.0,9.878e-05,2]
[422830756,1779487832000,-154.25,9.67e-05,2]
[422830771,1779487832000,-500.0,9.878e-05,2]
[422830766,1779487832000,-150.0,9.878e-05,2]
[422830777,1779487832000,-500.0,9.878e-05,2]
[422830751,1779487832000,-500.0,9.604e-05,2]
[422830764,1779487832000,-385.40743909,9.878e-05,2]
[422830780,1779487832000,-500.0,9.878e-05,2]
[422830784,1779487832000,-500.0,9.878e-05,2]
[422830782,1779487832000,-500.0,9.878e-05,2]
[422830786,1779487832000,-500.0,9.878e-05,2]
[422830770,1779487832000,-500.0,9.878e-05,2]
[422830747,1779487832000,-177.09990339,9.604e-05,2]
[422830737,1779487832000,-500.0,9.604e-05,2]
[422830745,1779487832000,-500.0,9.604e-05,2]
[422830722,1779487832000,-168.29,9.298e-05,2]
[422830723,1779487832000,-97.55703492,9.324e-05,2]
[422830725,1779487832000,-2000.0,9.41e-05,2]
[422830726,1779487832000,-237.0,9.416e-05,2]
[422830724,1779487832000,-607.99296508,9.324e-05,2]
[422830727,1779487832000,-500.0,9.502e-05,2]
[422830728,1779487832000,-168.12,9.575e-05,2]
[422830729,1779487832000,-150.0,9.603e-05,2]
[422830731,1779487832000,-1200.0,9.603e-05,2]
[422830742,1779487832000,-500.0,9.604e-05,2]
[422830730,1779487832000,-300.0,9.603e-05,2]
[422830750,1779487832000,-500.0,9.604e-05,2]
[422830741,1779487832000,-500.0,9.604e-05,2]
[422830734,1779487832000,-500.0,9.604e-05,2]
[422830733,1779487832000,-500.0,9.604e-05,2]
[422830739,1779487832000,-500.0,9.604e-05,2]
[422830740,1779487832000,-526.64877655,9.604e-05,2]
[422830736,1779487832000,-500.0,9.604e-05,2]
[422830735,1779487832000,-500.0,9.604e-05,2]
[422830788,1779487832000,-150.0,9.878e-05,2]
[422830738,1779487832000,-500.0,9.604e-05,2]
[422830744,1779487832000,-500.0,9.604e-05,2]
[422830743,1779487832000,-500.0,9.604e-05,2]
[422830746,1779487832000,-500.0,9.604e-05,2]
[422830732,1779487832000,-500.0,9.604e-05,2]
[422830789,1779487832000,-500.0,9.878e-05,2]
[422830749,1779487832000,-500.0,9.604e-05,2]
[422830787,1779487832000,-500.0,9.878e-05,2]
[422830825,1779487832000,-500.0,9.878e-05,2]
[422830827,1779487832000,-500.0,9.878e-05,2]
[422830824,1779487832000,-500.0,9.878e-05,2]
[422830816,1779487832000,-379.74276523,9.878e-05,2]
[422830821,1779487832000,-500.0,9.878e-05,2]
[422830822,1779487832000,-500.0,9.878e-05,2]
[422830826,1779487832000,-500.0,9.878e-05,2]
[422830818,1779487832000,-500.0,9.878e-05,2]
[422830820,1779487832000,-500.0,9.878e-05,2]
[422830819,1779487832000,-179.42747853,9.878e-05,2]
[422830828,1779487832000,-500.0,9.878e-05,2]
[422830829,1779487832000,-500.0,9.878e-05,2]
[422830839,1779487832000,-575.97279902,9.878e-05,2]
[422830837,1779487832000,-500.0,9.878e-05,2]
[422830838,1779487832000,-500.0,9.878e-05,2]
[422830835,1779487832000,-500.0,9.878e-05,2]
[422830832,1779487832000,-500.0,9.878e-05,2]
[422830830,1779487832000,-500.0,9.878e-05,2]
[422830834,1779487832000,-345.0,9.878e-05,2]
[422830836,1779487832000,-500.0,9.878e-05,2]
[422830833,1779487832000,-500.0,9.878e-05,2]
[422830840,1779487832000,-500.0,9.878e-05,2]
[422830785,1779487832000,-500.0,9.878e-05,2]
[422830823,1779487832000,-261.7659292,9.878e-05,2]
[422830817,1779487832000,-150.0,9.878e-05,2]
[422830831,1779487832000,-500.0,9.878e-05,2]
[422830811,1779487832000,-500.0,9.878e-05,2]
[422830802,1779487832000,-218.28993985,9.878e-05,2]
[422830815,1779487832000,-150.0,9.878e-05,2]
[422830791,1779487832000,-500.0,9.878e-05,2]
[422830801,1779487832000,-500.0,9.878e-05,2]
[422830790,1779487832000,-260.8998504,9.878e-05,2]
[422830792,1779487832000,-150.0,9.878e-05,2]
[422830794,1779487832000,-500.0,9.878e-05,2]
[422830795,1779487832000,-150.0,9.878e-05,2]
[422830793,1779487832000,-500.0,9.878e-05,2]
[422830796,1779487832000,-500.0,9.878e-05,2]
[422830798,1779487832000,-276.97220592,9.878e-05,2]
[422830799,1779487832000,-500.0,9.878e-05,2]
[422830797,1779487832000,-500.0,9.878e-05,2]
[422830813,1779487832000,-500.0,9.878e-05,2]
[422830808,1779487832000,-500.0,9.878e-05,2]
[422830800,1779487832000,-500.0,9.878e-05,2]
[422830809,1779487832000,-150.0,9.878e-05,2]
[422830810,1779487832000,-500.0,9.878e-05,2]
[422830814,1779487832000,-500.0,9.878e-05,2]
[422830804,1779487832000,-500.0,9.878e-05,2]
[422830803,1779487832000,-500.0,9.878e-05,2]
[422830807,1779487832000,-500.0,9.878e-05,2]
[422830805,1779487832000,-500.0,9.878e-05,2]
[422830806,1779487832000,-500.0,9.878e-05,2]
[422830812,1779487832000,-164.10866273,9.878e-05,2]
[422830877,1779487833000,-981.0,9.878e-05,2]
[422830882,1779487833000,-561.0,9.878e-05,2]
[422830884,1779487833000,-500.0,9.878e-05,2]
[422830879,1779487833000,-981.0,9.878e-05,2]
[422830876,1779487833000,-561.0,9.878e-05,2]
[422830866,1779487833000,-500.0,9.878e-05,2]
[422830868,1779487833000,-981.0,9.878e-05,2]
[422830869,1779487833000,-330.62898008,9.878e-05,2]
[422830867,1779487833000,-561.0,9.878e-05,2]
[422830883,1779487833000,-981.0,9.878e-05,2]
[422830875,1779487833000,-561.0,9.878e-05,2]
[422830887,1779487833000,-561.0,9.878e-05,2]
[422830898,1779487833000,-981.0,9.878e-05,2]
[422830890,1779487833000,-500.0,9.878e-05,2]
[422830878,1779487833000,-561.0,9.878e-05,2]
[422830885,1779487833000,-561.0,9.878e-05,2]
[422830881,1779487833000,-981.0,9.878e-05,2]
[422830886,1779487833000,-981.0,9.878e-05,2]
[422830889,1779487833000,-981.0,9.878e-05,2]
[422830892,1779487833000,-981.0,9.878e-05,2]
[422830897,1779487833000,-561.0,9.878e-05,2]
[422830901,1779487833000,-500.0,9.878e-05,2]
[422830900,1779487833000,-500.0,9.878e-05,2]
[422830874,1779487833000,-981.0,9.878e-05,2]
[422830880,1779487833000,-561.0,9.878e-05,2]
[422830873,1779487833000,-981.0,9.878e-05,2]
[422830851,1779487833000,-150.0,9.878e-05,2]
[422830871,1779487833000,-561.0,9.878e-05,2]
[422830841,1779487833000,-514.90386941,9.878e-05,2]
[422830847,1779487833000,-150.0,9.878e-05,2]
[422830846,1779487833000,-500.0,9.878e-05,2]
[422830844,1779487833000,-500.0,9.878e-05,2]
[422830843,1779487833000,-500.0,9.878e-05,2]
[422830845,1779487833000,-150.0,9.878e-05,2]
[422830850,1779487833000,-150.0,9.878e-05,2]
[422830848,1779487833000,-500.0,9.878e-05,2]
[422830842,1779487833000,-500.0,9.878e-05,2]
[422830849,1779487833000,-494.15033115,9.878e-05,2]
[422830852,1779487833000,-150.0,9.878e-05,2]
[422830856,1779487833000,-150.0,9.878e-05,2]
[422830853,1779487833000,-150.0,9.878e-05,2]
[422830854,1779487833000,-150.0,9.878e-05,2]
[422830855,1779487833000,-150.0,9.878e-05,2]
[422830857,1779487833000,-184.48877466,9.878e-05,2]
[422830861,1779487833000,-500.0,9.878e-05,2]
[422830859,1779487833000,-981.0,9.878e-05,2]
[422830860,1779487833000,-981.0,9.878e-05,2]
[422830858,1779487833000,-151.39467807,9.878e-05,2]
[422830862,1779487833000,-981.0,9.878e-05,2]
[422830863,1779487833000,-561.0,9.878e-05,2]
[422830864,1779487833000,-500.0,9.878e-05,2]
[422830865,1779487833000,-981.0,9.878e-05,2]
[422830870,1779487833000,-981.0,9.878e-05,2]
[422830872,1779487833000,-561.0,9.878e-05,2]
[422830899,1779487833000,-561.0,9.878e-05,2]
[422830903,1779487833000,-561.0,9.878e-05,2]
[422830893,1779487833000,-500.0,9.878e-05,2]
[422830939,1779487833000,-1471.0,9.878e-05,2]
[422830930,1779487833000,-1471.0,9.878e-05,2]
[422830932,1779487833000,-500.0,9.878e-05,2]
[422830935,1779487833000,-500.0,9.878e-05,2]
[422830931,1779487833000,-981.0,9.878e-05,2]
[422830929,1779487833000,-500.0,9.878e-05,2]
[422830934,1779487833000,-1471.0,9.878e-05,2]
[422830936,1779487833000,-561.0,9.878e-05,2]
[422830933,1779487833000,-1471.0,9.878e-05,2]
[422830928,1779487833000,-1471.0,9.878e-05,2]
[422830937,1779487833000,-1471.0,9.878e-05,2]
[422830938,1779487833000,-353.45757412,9.878e-05,2]
[422830941,1779487833000,-1471.0,9.878e-05,2]
[422830943,1779487833000,-1471.0,9.878e-05,2]
[422830942,1779487833000,-1471.0,9.878e-05,2]
[422830940,1779487833000,-1471.0,9.878e-05,2]
[422830944,1779487833000,-981.0,9.878e-05,2]
[422830947,1779487833000,-500.0,9.878e-05,2]
[422830946,1779487833000,-1471.0,9.878e-05,2]
[422830945,1779487833000,-561.0,9.878e-05,2]
[422830950,1779487833000,-150.60071289,9.878e-05,2]
[422830948,1779487833000,-558.89065839,9.878e-05,2]
[422830949,1779487833000,-1320.39928711,9.878e-05,2]
[422830951,1779487833000,-602.47021533,9.878e-05,2]
[422830891,1779487833000,-561.0,9.878e-05,2]
[422830927,1779487833000,-1471.0,9.878e-05,2]
[422830920,1779487833000,-500.0,9.878e-05,2]
[422830914,1779487833000,-981.0,9.878e-05,2]
[422830923,1779487833000,-1471.0,9.878e-05,2]
[422830888,1779487833000,-981.0,9.878e-05,2]
[422830896,1779487833000,-561.0,9.878e-05,2]
[422830895,1779487833000,-500.0,9.878e-05,2]
[422830902,1779487833000,-500.0,9.878e-05,2]
[422830904,1779487833000,-500.0,9.878e-05,2]
[422830907,1779487833000,-561.0,9.878e-05,2]
[422830913,1779487833000,-1471.0,9.878e-05,2]
[422830906,1779487833000,-981.0,9.878e-05,2]
[422830905,1779487833000,-331.38616183,9.878e-05,2]
[422830925,1779487833000,-1471.0,9.878e-05,2]
[422830909,1779487833000,-500.0,9.878e-05,2]
[422830912,1779487833000,-500.0,9.878e-05,2]
[422830894,1779487833000,-561.0,9.878e-05,2]
[422830908,1779487833000,-500.0,9.878e-05,2]
[422830919,1779487833000,-1471.0,9.878e-05,2]
[422830921,1779487833000,-1471.0,9.878e-05,2]
[422830918,1779487833000,-561.0,9.878e-05,2]
[422830926,1779487833000,-500.0,9.878e-05,2]
[422830922,1779487833000,-500.0,9.878e-05,2]
[422830910,1779487833000,-500.0,9.878e-05,2]
[422830917,1779487833000,-500.0,9.878e-05,2]
[422830916,1779487833000,-1471.0,9.878e-05,2]
[422830915,1779487833000,-500.0,9.878e-05,2]
[422830911,1779487833000,-500.0,9.878e-05,2]
[422830924,1779487833000,-500.0,9.878e-05,2]
[422830959,1779487838000,-561.0,9.878e-05,2]
[422830958,1779487838000,-378.52978467,9.878e-05,2]
[422830960,1779487838000,-1471.0,9.878e-05,2]
[422830962,1779487838000,-561.0,9.878e-05,2]
[422830963,1779487838000,-1471.0,9.878e-05,2]
[422830961,1779487838000,-981.0,9.878e-05,2]
[422830970,1779487838000,-500.0,9.941e-05,2]
[422830971,1779487838000,-500.0,9.941e-05,2]
[422830965,1779487838000,-998.33258363,9.878e-05,2]
[422830964,1779487838000,-1471.0,9.878e-05,2]
[422830974,1779487838000,-1043.6150067,9.942e-05,2]
[422830966,1779487838000,-584.23346716,9.878e-05,2]
[422830977,1779487838000,-69817.5407083,9.942e-05,2]
[422830979,1779487838000,-7075.15229004,9.942e-05,2]
[422830978,1779487838000,-20708.50095462,9.942e-05,2]
[422830969,1779487838000,-500.0,9.878e-05,2]
[422830972,1779487838000,-175.83569906,9.941e-05,2]
[422830975,1779487838000,-18073.8754357,9.942e-05,2]
[422830967,1779487838000,-1471.0,9.878e-05,2]
[422830968,1779487838000,-1483.36497151,9.878e-05,2]
[422830973,1779487838000,-1892.5433339,9.942e-05,2]
[422830976,1779487838000,-4514.2522495,9.942e-05,2]
[422830985,1779487840000,-380.05,9.942e-05,2]
[422830984,1779487840000,-7208.83198996,9.942e-05,2]
[422830989,1779487843000,-882.55272606,9.942e-05,2]
[422830993,1779487846000,-5558.18424962,9.942e-05,2]
[422830992,1779487846000,-4528.89031255,9.942e-05,2]
[422830995,1779487849000,1902.0,0.000107,5]
[422831001,1779488453000,517.28827424,0.00010484,5]
[422831000,1779488453000,998.71172576,0.00010484,5]
[422831002,1779488573000,200.0,9.8e-05,3]
[422831003,1779488575000,500.0,9.9e-05,3]
[422831004,1779488577000,800.0,0.0001,3]
[422831006,1779488728000,168.04,4.472e-05,2]
[422831007,1779488824000,1700.0,9.8e-05,3]
[422831008,1779488826000,3500.0,9.9e-05,3]
[422831009,1779488828000,5300.0,0.0001,3]
[422831010,1779488940000,1000.0,0.00027627,120]
[422831073,1779489032000,-2000.0,9.742e-05,2]
[422831053,1779489032000,-150.0,9.616e-05,2]
[422831055,1779489032000,-150.0,9.616e-05,2]
[422831045,1779489032000,-300.0,9.615e-05,2]
[422831051,1779489032000,-1647.0,9.616e-05,2]
[422831057,1779489032000,-150.0,9.616e-05,2]
[422831059,1779489032000,-150.0,9.616e-05,2]
[422831047,1779489032000,-300.0,9.615e-05,2]
[422831049,1779489032000,-300.0,9.615e-05,2]
[422831074,1779489032000,-2500.0,9.742e-05,2]
[422831060,1779489032000,-150.0,9.616e-05,2]
[422831064,1779489032000,-2520.14,9.645e-05,2]
[422831066,1779489032000,-176.342,9.645e-05,2]
[422831068,1779489032000,-4717.0,9.695e-05,2]
[422831067,1779489032000,-166.66,9.681e-05,2]
[422831070,1779489032000,-6805.7175,9.742e-05,2]
[422831072,1779489032000,-33202.0309,9.742e-05,2]
[422831071,1779489032000,-99161.3149,9.742e-05,2]
[422831069,1779489032000,-150.0,9.741e-05,2]
[422831042,1779489032000,-300.0,9.615e-05,2]
[422831062,1779489032000,-150.0,9.616e-05,2]
[422831036,1779489032000,-162.74,9.606e-05,2]
[422831038,1779489032000,-1200.0,9.613e-05,2]
[422831077,1779489032000,-286.69602649,9.743e-05,2]
[422831019,1779489032000,-164.93,8.702e-05,2]
[422831018,1779489032000,-874.0,8.679e-05,2]
[422831020,1779489032000,-200.0,8.705e-05,2]
[422831023,1779489032000,-168.98,8.982e-05,2]
[422831021,1779489032000,-464.35,8.899e-05,2]
[422831022,1779489032000,-168.04,8.943e-05,2]
[422831024,1779489032000,-1113.08,9.128e-05,2]
[422831026,1779489032000,-209.47212984,9.167e-05,2]
[422831025,1779489032000,-2000.0,9.167e-05,2]
[422831028,1779489032000,-296.94,9.5e-05,2]
[422831027,1779489032000,-500.0,9.479e-05,2]
[422831029,1779489032000,-167.68,9.506e-05,2]
[422831031,1779489032000,-196.43,9.596e-05,2]
[422831032,1779489032000,-500.0,9.604e-05,2]
[422831030,1779489032000,-609.0,9.589e-05,2]
[422831033,1779489032000,-500.0,9.604e-05,2]
[422831034,1779489032000,-500.0,9.604e-05,2]
[422831035,1779489032000,-500.0,9.604e-05,2]
[422831040,1779489032000,-300.0,9.615e-05,2]
[422831078,1779489032000,-500.0,9.743e-05,2]
[422831075,1779489032000,-209.47212983,9.742e-05,2]
[422831079,1779489032000,-500.0,9.743e-05,2]
[422831105,1779489032000,-642.0,9.743e-05,2]
[422831107,1779489032000,-642.0,9.743e-05,2]
[422831109,1779489032000,-642.0,9.743e-05,2]
[422831110,1779489032000,-642.0,9.743e-05,2]
[422831111,1779489032000,-642.0,9.743e-05,2]
[422831106,1779489032000,-642.0,9.743e-05,2]
[422831104,1779489032000,-642.0,9.743e-05,2]
[422831108,1779489032000,-642.0,9.743e-05,2]
[422831112,1779489032000,-642.0,9.743e-05,2]
[422831114,1779489032000,-500.0,9.743e-05,2]
[422831113,1779489032000,-656.48237153,9.743e-05,2]
[422831117,1779489032000,-500.0,9.743e-05,2]
[422831116,1779489032000,-500.0,9.743e-05,2]
[422831115,1779489032000,-500.0,9.743e-05,2]
[422831120,1779489032000,-500.0,9.743e-05,2]
[422831122,1779489032000,-164.93,9.79e-05,2]
[422831119,1779489032000,-488.8280538,9.743e-05,2]
[422831121,1779489032000,-250.0,9.789e-05,2]
[422831076,1779489032000,-500.0,9.743e-05,2]
[422831100,1779489032000,-642.0,9.743e-05,2]
[422831101,1779489032000,-642.0,9.743e-05,2]
[422831103,1779489032000,-642.0,9.743e-05,2]
[422831099,1779489032000,-642.0,9.743e-05,2]
[422831118,1779489032000,-500.0,9.743e-05,2]
[422831080,1779489032000,-500.0,9.743e-05,2]
[422831081,1779489032000,-500.0,9.743e-05,2]
[422831083,1779489032000,-500.0,9.743e-05,2]
[422831084,1779489032000,-500.0,9.743e-05,2]
[422831085,1779489032000,-500.0,9.743e-05,2]
[422831082,1779489032000,-500.0,9.743e-05,2]
[422831102,1779489032000,-642.0,9.743e-05,2]
[422831087,1779489032000,-642.0,9.743e-05,2]
[422831090,1779489032000,-500.0,9.743e-05,2]
[422831086,1779489032000,-627.37571125,9.743e-05,2]
[422831088,1779489032000,-500.0,9.743e-05,2]
[422831093,1779489032000,-642.0,9.743e-05,2]
[422831091,1779489032000,-642.0,9.743e-05,2]
[422831092,1779489032000,-626.17123448,9.743e-05,2]
[422831095,1779489032000,-642.0,9.743e-05,2]
[422831098,1779489032000,-642.0,9.743e-05,2]
[422831096,1779489032000,-642.0,9.743e-05,2]
[422831094,1779489032000,-642.0,9.743e-05,2]
[422831089,1779489032000,-642.0,9.743e-05,2]
[422831097,1779489032000,-642.0,9.743e-05,2]
[422831126,1779489033000,-3734.31280475,9.842e-05,2]
[422831125,1779489033000,-574.71600765,9.604e-05,2]
[422831124,1779489033000,-34542.28560302,9.842e-05,2]
[422831123,1779489033000,-150.0,9.83e-05,2]
[422831133,1779489038000,-803.28602825,8.675e-05,2]
[422831135,1779489038000,-1304.90056787,9.842e-05,2]
[422831134,1779489038000,-113.31899596,9.842e-05,2]
[422831139,1779489038000,-871.643,9.842e-05,2]
[422831136,1779489038000,-465.16280073,9.842e-05,2]
[422831138,1779489038000,-1890.27613519,9.842e-05,2]
[422831137,1779489038000,-852.51481247,9.842e-05,2]
[422831132,1779489038000,-528.24397175,8.675e-05,2]
[422831404,1779489040000,-8904.45631278,9.842e-05,2]
[422831413,1779489043000,-1918.70152904,9.842e-05,2]
[422831412,1779489043000,-1939.16863498,9.842e-05,2]
[422831411,1779489043000,-539.05190613,9.842e-05,2]
[422831416,1779489046000,-396.79038489,9.842e-05,2]
[422831421,1779489046000,-3339.35127507,9.842e-05,2]
[422831422,1779489046000,-378.69464344,9.842e-05,2]
[422831423,1779489046000,-1125.62062013,9.842e-05,2]
[422831420,1779489046000,-7328.77978839,9.842e-05,2]
[422831601,1779489058000,1418.0,0.00010191,5]
[422831604,1779489206000,330.0,9.945e-05,3]
[422831605,1779489361000,330.0,9.945e-05,3]
[422831606,1779489485000,330.0,9.945e-05,3]
[422831607,1779489509000,5386.55018,0.00019,30]
[422831608,1779489514000,3367.0404,0.00018,30]
[422831609,1779489663000,1135.0,0.00010061,5]
[422831611,1779489715000,155.07,4.668e-05,2]
[422831610,1779489715000,155.07,4.357e-05,2]
[422831613,1779489715000,155.07,5.291e-05,2]